[Event "*** Titled Tuesday Blitz"]
[Site "Chess.com"]
[Date "2020.05.05"]
[Round "4"]
[White "AndriiTop"]
[Black "Muguet7"]
[Result "1-0"]
[WhiteElo "2322"]
[BlackElo "2453"]
[TimeControl "180+1"]
[EndTime "10:43:10 PDT"]
[Termination "AndriiTop won on time"]

1. d4 {[%clk 0:02:59.1]} 1... Nf6 {[%clk 0:02:59.7]} 2. Nf3 {[%clk 0:02:57.3]}
2... e6 {[%clk 0:02:59.6]} 3. c4 {[%clk 0:02:57.8]} 3... b6 {[%clk 0:02:59.5]}
4. g3 {[%clk 0:02:58]} 4... Ba6 {[%clk 0:02:59.2]} 5. b3 {[%clk 0:02:58.3]} 5...
d5 {[%clk 0:02:58.2]} 6. Ne5 {[%clk 0:02:33.3]} 6... c5 {[%clk 0:02:55]} 7. Bg2
{[%clk 0:02:24.8]} 7... cxd4 {[%clk 0:02:53.2]} 8. O-O {[%clk 0:02:14.9]} 8...
Bc5 {[%clk 0:02:52.6]} 9. b4 {[%clk 0:02:13.5]} 9... Bd6 {[%clk 0:02:47.9]} 10.
cxd5 {[%clk 0:02:05.1]} 10... Nxd5 {[%clk 0:02:34.2]} 11. Qxd4 {[%clk
0:01:51.4]} 11... Bb7 {[%clk 0:02:08.2]} 12. a3 {[%clk 0:01:27.4]} 12... O-O
{[%clk 0:02:02.9]} 13. Bb2 {[%clk 0:01:24.7]} 13... f6 {[%clk 0:02:01.1]} 14.
Nc4 {[%clk 0:01:16.9]} 14... Nc6 {[%clk 0:02:00.3]} 15. Qg4 {[%clk 0:01:10]}
15... Qe7 {[%clk 0:01:43.8]} 16. Nxd6 {[%clk 0:01:08.4]} 16... Qxd6 {[%clk
0:01:43.3]} 17. Rd1 {[%clk 0:01:07.8]} 17... Ne5 {[%clk 0:01:41]} 18. Qh3 {[%clk
0:00:48]} 18... Qe7 {[%clk 0:01:33.9]} 19. Nd2 {[%clk 0:00:47]} 19... Rad8
{[%clk 0:01:29.3]} 20. Rac1 {[%clk 0:00:38]} 20... Ba6 {[%clk 0:01:27.9]} 21.
Bxe5 {[%clk 0:00:27.4]} 21... fxe5 {[%clk 0:01:27.3]} 22. Bf3 {[%clk 0:00:27.9]}
22... Nf6 {[%clk 0:01:22.1]} 23. Ne4 {[%clk 0:00:26.1]} 23... Nxe4 {[%clk
0:01:12]} 24. Bxe4 {[%clk 0:00:27]} 24... h6 {[%clk 0:01:11.9]} 25. Bd3 {[%clk
0:00:24]} 25... Bb7 {[%clk 0:01:10.4]} 26. Bc4 {[%clk 0:00:23]} 26... Bd5 {[%clk
0:01:10.1]} 27. Qg4 {[%clk 0:00:22.7]} 27... Qf6 {[%clk 0:01:06.2]} 28. f3
{[%clk 0:00:20.6]} 28... e4 {[%clk 0:01:01.1]} 29. Bxd5 {[%clk 0:00:18]} 29...
exd5 {[%clk 0:01:00.8]} 30. fxe4 {[%clk 0:00:18.3]} 30... d4 {[%clk 0:00:54.6]}
31. Qf5 {[%clk 0:00:17.3]} 31... Qxf5 {[%clk 0:00:50.2]} 32. exf5 {[%clk
0:00:18.2]} 32... Rxf5 {[%clk 0:00:50]} 33. Rd2 {[%clk 0:00:18.5]} 33... Re5
{[%clk 0:00:48.6]} 34. Rcd1 {[%clk 0:00:18.7]} 34... Re3 {[%clk 0:00:47.5]} 35.
Rxd4 {[%clk 0:00:18]} 35... Rxd4 {[%clk 0:00:47.2]} 36. Rxd4 {[%clk 0:00:18.9]}
36... Rxa3 {[%clk 0:00:47.1]} 37. Rd7 {[%clk 0:00:18.4]} 37... a5 {[%clk
0:00:39.2]} 38. bxa5 {[%clk 0:00:19.3]} 38... bxa5 {[%clk 0:00:39.2]} 39. Ra7
{[%clk 0:00:19.3]} 39... a4 {[%clk 0:00:39]} 40. e4 {[%clk 0:00:19.4]} 40... Kh7
{[%clk 0:00:37.1]} 41. e5 {[%clk 0:00:19.2]} 41... Kg6 {[%clk 0:00:36.3]} 42. e6
{[%clk 0:00:19.2]} 42... Kf6 {[%clk 0:00:36.2]} 43. e7 {[%clk 0:00:20.1]} 43...
Kf7 {[%clk 0:00:36.3]} 44. Kg2 {[%clk 0:00:20.7]} 44... Ra1 {[%clk 0:00:34.9]}
45. Kf3 {[%clk 0:00:20.6]} 45... a3 {[%clk 0:00:32.6]} 46. Kg2 {[%clk
0:00:20.9]} 46... a2 {[%clk 0:00:32.3]} 47. Kh3 {[%clk 0:00:20.5]} 47... Ke8
{[%clk 0:00:31.3]} 48. Kg2 {[%clk 0:00:20.8]} 48... g5 {[%clk 0:00:30.7]} 49.
Kh3 {[%clk 0:00:21.2]} 49... h5 {[%clk 0:00:30.5]} 50. Kg2 {[%clk 0:00:21.7]}
50... g4 {[%clk 0:00:30.4]} 51. h3 {[%clk 0:00:16.3]} 51... gxh3+ {[%clk
0:00:26.9]} 52. Kh2 {[%clk 0:00:16.8]} 52... Kf7 {[%clk 0:00:26.5]} 53. e8=Q+
{[%clk 0:00:15.3]} 53... Kxe8 {[%clk 0:00:26.4]} 54. Ra5 {[%clk 0:00:14.6]}
54... Kf7 {[%clk 0:00:26]} 55. Ra6 {[%clk 0:00:14.7]} 55... Ke7 {[%clk
0:00:25.4]} 56. Ra5 {[%clk 0:00:14.8]} 56... Kd7 {[%clk 0:00:25.5]} 57. Ra6
{[%clk 0:00:15.1]} 57... Kc7 {[%clk 0:00:25.8]} 58. Ra5 {[%clk 0:00:15.6]} 58...
Kb6 {[%clk 0:00:25.7]} 59. Ra8 {[%clk 0:00:15.7]} 59... Kc5 {[%clk 0:00:25.6]}
60. Rc8+ {[%clk 0:00:15.7]} 60... Kd4 {[%clk 0:00:25.4]} 61. Rd8+ {[%clk
0:00:16.1]} 61... Ke3 {[%clk 0:00:25.3]} 62. Re8+ {[%clk 0:00:15.9]} 62... Kf3
{[%clk 0:00:25.4]} 63. Rf8+ {[%clk 0:00:15.3]} 63... Kg4 {[%clk 0:00:25.5]} 64.
Rg8+ {[%clk 0:00:15.3]} 64... Kf5 {[%clk 0:00:25.6]} 65. Rf8+ {[%clk 0:00:15.5]}
65... Kg6 {[%clk 0:00:25.8]} 66. Rg8+ {[%clk 0:00:15.4]} 66... Kf7 {[%clk
0:00:25.8]} 67. Ra8 {[%clk 0:00:15.7]} 67... Ke7 {[%clk 0:00:26]} 68. Ra7+
{[%clk 0:00:15.1]} 68... Kd8 {[%clk 0:00:26.2]} 69. Ra8+ {[%clk 0:00:14.8]}
69... Kc7 {[%clk 0:00:26.3]} 70. Ra7+ {[%clk 0:00:15.4]} 70... Kb8 {[%clk
0:00:26.4]} 71. Ra4 {[%clk 0:00:15]} 71... Kb7 {[%clk 0:00:26.4]} 72. Ra5 {[%clk
0:00:15.1]} 72... Kb6 {[%clk 0:00:25.5]} 73. Ra8 {[%clk 0:00:14.9]} 73... Kc6
{[%clk 0:00:23.2]} 74. Ra7 {[%clk 0:00:14.4]} 74... Kd6 {[%clk 0:00:22.6]} 75.
Ra8 {[%clk 0:00:14.6]} 75... h4 {[%clk 0:00:21.8]} 76. gxh4 {[%clk 0:00:13.3]}
76... Ke6 {[%clk 0:00:22.1]} 77. Ra6+ {[%clk 0:00:12.7]} 77... Kf5 {[%clk
0:00:22.2]} 78. Ra5+ {[%clk 0:00:13.1]} 78... Kg4 {[%clk 0:00:22.2]} 79. Ra4+
{[%clk 0:00:13.2]} 79... Kh5 {[%clk 0:00:22.5]} 80. Ra5+ {[%clk 0:00:13.4]}
80... Kxh4 {[%clk 0:00:22.7]} 81. Ra4+ {[%clk 0:00:14]} 81... Kg5 {[%clk
0:00:23]} 82. Ra5+ {[%clk 0:00:14.3]} 82... Kf4 {[%clk 0:00:23.1]} 83. Ra4+
{[%clk 0:00:14.3]} 83... Ke3 {[%clk 0:00:22]} 84. Ra3+ {[%clk 0:00:13.9]} 84...
Kd2 {[%clk 0:00:20.5]} 85. Ra8 {[%clk 0:00:14.2]} 85... Ke3 {[%clk 0:00:14.7]}
86. Re8+ {[%clk 0:00:12.8]} 86... Kf4 {[%clk 0:00:14.7]} 87. Rf8+ {[%clk
0:00:12.7]} 87... Kg5 {[%clk 0:00:15]} 88. Rg8+ {[%clk 0:00:12.7]} 88... Kf6
{[%clk 0:00:15.2]} 89. Rf8+ {[%clk 0:00:13]} 89... Kg7 {[%clk 0:00:15.5]} 90.
Ra8 {[%clk 0:00:13.9]} 90... Rb1 {[%clk 0:00:15.1]} 91. Rxa2 {[%clk 0:00:13.4]}
91... Rb2+ {[%clk 0:00:15.3]} 92. Rxb2 {[%clk 0:00:13.1]} 1-0

[Event "*** Titled Tuesday Blitz"]
[Site "Chess.com"]
[Date "2020.05.05"]
[Round "5"]
[White "RAU4ever"]
[Black "EddieMarsalla"]
[Result "0-1"]
[WhiteElo "2353"]
[BlackElo "2513"]
[TimeControl "180+1"]
[EndTime "10:51:39 PDT"]
[Termination "EddieMarsalla won by resignation"]

1. e4 {[%clk 0:03:00.9]} 1... d5 {[%clk 0:02:59.3]} 2. exd5 {[%clk 0:03:00.5]}
2... Qxd5 {[%clk 0:03:00.2]} 3. Nc3 {[%clk 0:03:00.9]} 3... Qe5+ {[%clk
0:03:00.8]} 4. Be2 {[%clk 0:02:48.1]} 4... c6 {[%clk 0:03:00.8]} 5. Nf3 {[%clk
0:02:47.9]} 5... Qc7 {[%clk 0:03:01.5]} 6. d4 {[%clk 0:02:47]} 6... Bf5 {[%clk
0:03:02.4]} 7. Bg5 {[%clk 0:02:45.6]} 7... e6 {[%clk 0:03:02.5]} 8. Qd2 {[%clk
0:02:44.9]} 8... Nd7 {[%clk 0:03:03.1]} 9. O-O-O {[%clk 0:02:44.9]} 9... Bd6
{[%clk 0:03:03.1]} 10. h3 {[%clk 0:02:42.6]} 10... h6 {[%clk 0:03:03.1]} 11. Be3
{[%clk 0:02:42.3]} 11... Ngf6 {[%clk 0:03:03.3]} 12. Kb1 {[%clk 0:02:34.8]}
12... Bb4 {[%clk 0:03:03]} 13. Bf4 {[%clk 0:02:09.8]} 13... Qa5 {[%clk
0:03:00.2]} 14. Qe3 {[%clk 0:02:09.8]} 14... Bxc3 {[%clk 0:02:58.8]} 15. Qxc3
{[%clk 0:02:09.1]} 15... Qxc3 {[%clk 0:02:58.8]} 16. bxc3 {[%clk 0:02:10]} 16...
Ne4 {[%clk 0:02:59.7]} 17. Rdf1 {[%clk 0:01:58.2]} 0-1

[Event "*** Titled Tuesday Blitz"]
[Site "Chess.com"]
[Date "2020.05.05"]
[Round "5"]
[White "ecwinslow"]
[Black "CarlssonLudvig"]
[Result "0-1"]
[WhiteElo "2231"]
[BlackElo "2453"]
[TimeControl "180+1"]
[EndTime "10:52:03 PDT"]
[Termination "CarlssonLudvig won by resignation"]

1. e4 {[%clk 0:03:00.9]} 1... e5 {[%clk 0:02:59.6]} 2. Nf3 {[%clk 0:02:59.7]}
2... Nc6 {[%clk 0:02:59.2]} 3. d4 {[%clk 0:02:58.3]} 3... exd4 {[%clk
0:02:58.1]} 4. Nxd4 {[%clk 0:02:59.2]} 4... Nf6 {[%clk 0:02:57.9]} 5. Nxc6
{[%clk 0:02:57.9]} 5... bxc6 {[%clk 0:02:57.6]} 6. e5 {[%clk 0:02:57.7]} 6...
Qe7 {[%clk 0:02:57.6]} 7. Qe2 {[%clk 0:02:58.2]} 7... Nd5 {[%clk 0:02:56.8]} 8.
c4 {[%clk 0:02:57.5]} 8... Ba6 {[%clk 0:02:57.4]} 9. Nd2 {[%clk 0:02:56.3]} 9...
g6 {[%clk 0:02:55.9]} 10. Nf3 {[%clk 0:02:51.5]} 10... Qb4+ {[%clk 0:02:51.6]}
11. Qd2 {[%clk 0:02:46.8]} 11... Bxc4 {[%clk 0:02:48.9]} 12. Bxc4 {[%clk
0:02:26.1]} 12... Qxc4 {[%clk 0:02:48.7]} 13. b3 {[%clk 0:02:18.4]} 13... Qa6
{[%clk 0:02:28.2]} 14. Bb2 {[%clk 0:01:57]} 0-1

[Event "*** Titled Tuesday Blitz"]
[Site "Chess.com"]
[Date "2020.05.05"]
[Round "5"]
[White "NotFischer"]
[Black "lucasmito"]
[Result "0-1"]
[WhiteElo "2153"]
[BlackElo "2428"]
[TimeControl "180+1"]
[EndTime "10:52:15 PDT"]
[Termination "lucasmito won by checkmate"]

1. d4 {[%clk 0:03:00.8]} 1... d5 {[%clk 0:02:59]} 2. Nf3 {[%clk 0:03:00.7]} 2...
Nf6 {[%clk 0:02:53.9]} 3. g3 {[%clk 0:03:00.9]} 3... e6 {[%clk 0:02:53.8]} 4.
Bg2 {[%clk 0:03:01]} 4... Be7 {[%clk 0:02:54.7]} 5. O-O {[%clk 0:03:00.9]} 5...
O-O {[%clk 0:02:55.2]} 6. c4 {[%clk 0:03:01.2]} 6... dxc4 {[%clk 0:02:52.1]} 7.
Ne5 {[%clk 0:03:01.4]} 7... Nc6 {[%clk 0:02:52.1]} 8. Nxc6 {[%clk 0:03:01.5]}
8... bxc6 {[%clk 0:02:53]} 9. Bxc6 {[%clk 0:02:55.2]} 9... Rb8 {[%clk 0:02:53]}
10. Nd2 {[%clk 0:02:51]} 10... Qxd4 {[%clk 0:02:52.1]} 11. Nf3 {[%clk
0:02:48.3]} 11... Qc5 {[%clk 0:02:52.1]} 12. Ba4 {[%clk 0:02:37.8]} 12... Bb7
{[%clk 0:02:52]} 13. Be3 {[%clk 0:02:35.3]} 13... Qh5 {[%clk 0:02:52.4]} 14. Re1
{[%clk 0:01:42.4]} 14... Ng4 {[%clk 0:02:44.7]} 15. Bf4 {[%clk 0:01:42.5]} 15...
Bxf3 {[%clk 0:02:43]} 16. exf3 {[%clk 0:01:43.4]} 16... Qxh2+ {[%clk 0:02:42.8]}
17. Kf1 {[%clk 0:01:43.9]} 17... Qxf2# {[%clk 0:02:43.7]} 0-1

[Event "*** Titled Tuesday Blitz"]
[Site "Chess.com"]
[Date "2020.05.05"]
[Round "5"]
[White "Blitzking642"]
[Black "Bastiandash"]
[Result "1-0"]
[WhiteElo "2307"]
[BlackElo "2095"]
[TimeControl "180+1"]
[EndTime "10:52:25 PDT"]
[Termination "Blitzking642 won by resignation"]

1. e4 {[%clk 0:03:00.9]} 1... c5 {[%clk 0:02:59.7]} 2. Nc3 {[%clk 0:03:00.4]}
2... e6 {[%clk 0:03:00.2]} 3. g3 {[%clk 0:02:58.8]} 3... a6 {[%clk 0:03:00.8]}
4. Bg2 {[%clk 0:02:57.9]} 4... b5 {[%clk 0:03:01.3]} 5. d3 {[%clk 0:02:54.2]}
5... Bb7 {[%clk 0:03:01.7]} 6. Nh3 {[%clk 0:02:51.4]} 6... Nf6 {[%clk
0:02:56.9]} 7. f4 {[%clk 0:02:50]} 7... d5 {[%clk 0:02:57.2]} 8. e5 {[%clk
0:02:46.4]} 8... Nfd7 {[%clk 0:02:57.6]} 9. O-O {[%clk 0:02:46.8]} 9... Nc6
{[%clk 0:02:58.1]} 10. f5 {[%clk 0:02:44.2]} 10... Ndxe5 {[%clk 0:02:50.6]} 11.
fxe6 {[%clk 0:02:38.2]} 11... fxe6 {[%clk 0:02:51.5]} 12. Ng5 {[%clk 0:02:14.5]}
12... Qa5 {[%clk 0:02:41.4]} 13. Nxe6 {[%clk 0:02:11.2]} 13... Ne7 {[%clk
0:02:19.9]} 14. Bf4 {[%clk 0:01:49.3]} 1-0

[Event "*** Titled Tuesday Blitz"]
[Site "Chess.com"]
[Date "2020.05.05"]
[Round "5"]
[White "konradrutkowski"]
[Black "Saloni1299"]
[Result "1-0"]
[WhiteElo "2189"]
[BlackElo "2330"]
[TimeControl "180+1"]
[EndTime "10:52:38 PDT"]
[Termination "konradrutkowski won by checkmate"]

1. e4 {[%clk 0:03:00.9]} 1... e6 {[%clk 0:02:59.5]} 2. d4 {[%clk 0:03:00.6]}
2... d5 {[%clk 0:02:59.6]} 3. Nc3 {[%clk 0:03:01.5]} 3... Bb4 {[%clk 0:02:57.8]}
4. Ne2 {[%clk 0:02:57.1]} 4... dxe4 {[%clk 0:02:56.4]} 5. a3 {[%clk 0:02:57.3]}
5... Bxc3+ {[%clk 0:02:56.4]} 6. Nxc3 {[%clk 0:02:58.2]} 6... Nf6 {[%clk
0:02:53.3]} 7. Bg5 {[%clk 0:02:53.6]} 7... Nc6 {[%clk 0:02:53.5]} 8. Bb5 {[%clk
0:02:51.1]} 8... O-O {[%clk 0:02:16.1]} 9. Nxe4 {[%clk 0:02:27.4]} 9... Qxd4
{[%clk 0:02:12.2]} 10. Bxc6 {[%clk 0:02:12.4]} 10... Qxd1+ {[%clk 0:01:53.6]}
11. Rxd1 {[%clk 0:02:11.4]} 11... bxc6 {[%clk 0:01:51.2]} 12. Nxf6+ {[%clk
0:02:11.3]} 12... gxf6 {[%clk 0:01:50.2]} 13. Bxf6 {[%clk 0:02:12.2]} 13... Rb8
{[%clk 0:01:49.5]} 14. Rd3 {[%clk 0:02:09.7]} 14... Ba6 {[%clk 0:01:46.8]} 15.
Rg3# {[%clk 0:02:09.2]} 1-0

[Event "*** Titled Tuesday Blitz"]
[Site "Chess.com"]
[Date "2020.05.05"]
[Round "5"]
[White "vangulio"]
[Black "Manukyan_Artak"]
[Result "1-0"]
[WhiteElo "2527"]
[BlackElo "2348"]
[TimeControl "180+1"]
[EndTime "10:52:52 PDT"]
[Termination "vangulio won by resignation"]

1. e4 {[%clk 0:03:00.9]} 1... c5 {[%clk 0:02:59.5]} 2. Nf3 {[%clk 0:03:00.5]}
2... a6 {[%clk 0:02:56.8]} 3. g3 {[%clk 0:02:58.1]} 3... e6 {[%clk 0:02:50.3]}
4. Bg2 {[%clk 0:02:57.9]} 4... d5 {[%clk 0:02:50.5]} 5. exd5 {[%clk 0:02:57.5]}
5... exd5 {[%clk 0:02:50.5]} 6. O-O {[%clk 0:02:57.6]} 6... Be7 {[%clk 0:02:50]}
7. d4 {[%clk 0:02:56.5]} 7... c4 {[%clk 0:02:49.4]} 8. b3 {[%clk 0:02:52.7]}
8... cxb3 {[%clk 0:02:36.8]} 9. axb3 {[%clk 0:02:51.7]} 9... Nf6 {[%clk
0:02:37.5]} 10. c4 {[%clk 0:02:47.7]} 10... O-O {[%clk 0:02:36.9]} 11. Nc3
{[%clk 0:02:43]} 11... Nc6 {[%clk 0:02:33.4]} 12. Ne5 {[%clk 0:02:41.8]} 12...
dxc4 {[%clk 0:02:21]} 13. Nxc6 {[%clk 0:02:33.2]} 13... bxc6 {[%clk 0:02:20.8]}
14. bxc4 {[%clk 0:02:25.6]} 14... Bb7 {[%clk 0:02:10.6]} 15. Rb1 {[%clk
0:02:20.9]} 15... Qc8 {[%clk 0:02:03.9]} 16. Re1 {[%clk 0:02:17.7]} 16... Re8
{[%clk 0:01:55.7]} 17. Na4 {[%clk 0:02:17.5]} 17... Qf5 {[%clk 0:01:51.5]} 18.
Rxb7 {[%clk 0:02:14.5]} 18... Rac8 {[%clk 0:01:42.5]} 19. Rbxe7 {[%clk
0:02:08.8]} 1-0

[Event "*** Titled Tuesday Blitz"]
[Site "Chess.com"]
[Date "2020.05.05"]
[Round "5"]
[White "m_ezat"]
[Black "ShadowJolteon"]
[Result "1-0"]
[WhiteElo "2472"]
[BlackElo "2257"]
[TimeControl "180+1"]
[EndTime "10:52:54 PDT"]
[Termination "m_ezat won by resignation"]

1. d4 {[%clk 0:03:00.9]} 1... Nf6 {[%clk 0:02:58.9]} 2. c4 {[%clk 0:02:54.9]}
2... e6 {[%clk 0:02:56]} 3. Nc3 {[%clk 0:02:55.2]} 3... Bb4 {[%clk 0:02:55]} 4.
e3 {[%clk 0:02:55.2]} 4... b6 {[%clk 0:02:52.7]} 5. a3 {[%clk 0:02:54]} 5...
Bxc3+ {[%clk 0:02:51.4]} 6. bxc3 {[%clk 0:02:53.9]} 6... Nc6 {[%clk 0:02:51.8]}
7. Bd3 {[%clk 0:02:54.3]} 7... Ba6 {[%clk 0:02:51.1]} 8. Ne2 {[%clk 0:02:53.5]}
8... Na5 {[%clk 0:02:51.1]} 9. e4 {[%clk 0:02:51.8]} 9... c5 {[%clk 0:02:50.5]}
10. Bg5 {[%clk 0:02:49.6]} 10... h6 {[%clk 0:02:50.3]} 11. Bh4 {[%clk
0:02:49.4]} 11... g5 {[%clk 0:02:50.2]} 12. Bg3 {[%clk 0:02:49.3]} 12... Rc8
{[%clk 0:02:49.9]} 13. d5 {[%clk 0:02:43.1]} 13... Bxc4 {[%clk 0:02:42.6]} 14.
O-O {[%clk 0:02:41.2]} 14... Bxd3 {[%clk 0:02:24.9]} 15. Qxd3 {[%clk 0:02:40.7]}
15... d6 {[%clk 0:02:25]} 16. dxe6 {[%clk 0:02:35.2]} 16... fxe6 {[%clk
0:02:24.4]} 17. e5 {[%clk 0:02:35.5]} 17... dxe5 {[%clk 0:01:59.9]} 18. Qg6+
{[%clk 0:02:35.3]} 18... Ke7 {[%clk 0:01:48]} 19. Bxe5 {[%clk 0:02:27.9]} 19...
Qf8 {[%clk 0:01:47]} 20. Rad1 {[%clk 0:02:19.6]} 20... Nc4 {[%clk 0:01:46.6]}
21. Bxf6+ {[%clk 0:02:17.9]} 21... Qxf6 {[%clk 0:01:45.4]} 22. Rd7+ {[%clk
0:02:17.7]} 1-0

[Event "*** Titled Tuesday Blitz"]
[Site "Chess.com"]
[Date "2020.05.05"]
[Round "5"]
[White "WinningButNotReally"]
[Black "lucliasco"]
[Result "0-1"]
[WhiteElo "2451"]
[BlackElo "2668"]
[TimeControl "180+1"]
[EndTime "10:52:59 PDT"]
[Termination "lucliasco won by resignation"]

1. Nf3 {[%clk 0:03:00.9]} 1... d5 {[%clk 0:02:59]} 2. g3 {[%clk 0:03:00.3]} 2...
Bg4 {[%clk 0:02:58.1]} 3. Ne5 {[%clk 0:02:59.6]} 3... Bf5 {[%clk 0:02:57.3]} 4.
d4 {[%clk 0:02:59.3]} 4... e6 {[%clk 0:02:57.5]} 5. Bg2 {[%clk 0:02:37.1]} 5...
Nf6 {[%clk 0:02:54.1]} 6. O-O {[%clk 0:02:36.7]} 6... Be7 {[%clk 0:02:53.7]} 7.
c4 {[%clk 0:02:36.6]} 7... O-O {[%clk 0:02:50.6]} 8. Nc3 {[%clk 0:02:36.6]} 8...
c6 {[%clk 0:02:50.3]} 9. f3 {[%clk 0:02:35.5]} 9... h6 {[%clk 0:02:44.3]} 10. e4
{[%clk 0:02:35.1]} 10... Bh7 {[%clk 0:02:44.9]} 11. Re1 {[%clk 0:01:50]} 11...
Nbd7 {[%clk 0:02:44.4]} 12. Nxd7 {[%clk 0:01:50.1]} 12... Qxd7 {[%clk
0:02:42.5]} 13. e5 {[%clk 0:01:50.4]} 13... Ne8 {[%clk 0:02:42.8]} 14. Qb3
{[%clk 0:01:49.8]} 14... Nc7 {[%clk 0:02:37.9]} 15. cxd5 {[%clk 0:01:48.1]}
15... Nxd5 {[%clk 0:02:35.8]} 16. Ne4 {[%clk 0:01:48]} 16... b6 {[%clk
0:02:32.3]} 17. a3 {[%clk 0:01:44.8]} 17... Rac8 {[%clk 0:02:25.6]} 0-1

[Event "*** Titled Tuesday Blitz"]
[Site "Chess.com"]
[Date "2020.05.05"]
[Round "5"]
[White "Lubov_Gordyk"]
[Black "StockholmMissile"]
[Result "1-0"]
[WhiteElo "2635"]
[BlackElo "2410"]
[TimeControl "180+1"]
[EndTime "10:53:28 PDT"]
[Termination "Lubov_Gordyk won by resignation"]

1. e4 {[%clk 0:03:00.9]} 1... e5 {[%clk 0:02:59.3]} 2. Nf3 {[%clk 0:03:00.5]}
2... Nc6 {[%clk 0:02:58.9]} 3. Nc3 {[%clk 0:03:00.6]} 3... Nf6 {[%clk
0:02:58.5]} 4. d4 {[%clk 0:03:00.7]} 4... exd4 {[%clk 0:02:58.6]} 5. Nxd4 {[%clk
0:03:01.1]} 5... Bc5 {[%clk 0:02:58.6]} 6. Be3 {[%clk 0:03:00.3]} 6... Bb6
{[%clk 0:02:57.3]} 7. Qd2 {[%clk 0:03:00.2]} 7... O-O {[%clk 0:02:55.2]} 8.
O-O-O {[%clk 0:02:59.1]} 8... d6 {[%clk 0:02:42.5]} 9. f3 {[%clk 0:02:50.5]}
9... Re8 {[%clk 0:02:28.2]} 10. g4 {[%clk 0:02:47.5]} 10... Nd7 {[%clk
0:02:25.9]} 11. h4 {[%clk 0:02:39.2]} 11... Nde5 {[%clk 0:02:25.6]} 12. Be2
{[%clk 0:02:39.1]} 12... Nxd4 {[%clk 0:02:10.8]} 13. Bxd4 {[%clk 0:02:38.4]}
13... Nc6 {[%clk 0:02:10.8]} 14. Be3 {[%clk 0:02:33.2]} 14... Be6 {[%clk
0:02:08.4]} 15. g5 {[%clk 0:02:25.9]} 15... Ne5 {[%clk 0:02:07.2]} 16. Rhg1
{[%clk 0:02:17.1]} 16... Nc4 {[%clk 0:01:55.3]} 17. Bxc4 {[%clk 0:02:16.5]}
17... Bxc4 {[%clk 0:01:56.2]} 18. h5 {[%clk 0:02:15.1]} 18... Qe7 {[%clk
0:01:38.1]} 19. h6 {[%clk 0:02:11.6]} 19... g6 {[%clk 0:01:35.3]} 20. Bxb6
{[%clk 0:02:09.8]} 20... axb6 {[%clk 0:01:34]} 21. Qd4 {[%clk 0:02:09.8]} 1-0

[Event "*** Titled Tuesday Blitz"]
[Site "Chess.com"]
[Date "2020.05.05"]
[Round "5"]
[White "Stronger1799"]
[Black "Walter_White_Poland"]
[Result "1-0"]
[WhiteElo "2125"]
[BlackElo "2154"]
[TimeControl "180+1"]
[EndTime "10:53:42 PDT"]
[Termination "Stronger1799 won by resignation"]

1. e4 {[%clk 0:02:46.1]} 1... e5 {[%clk 0:02:58.4]} 2. Nf3 {[%clk 0:02:45.8]}
2... Nc6 {[%clk 0:02:58.4]} 3. Bb5 {[%clk 0:02:45.6]} 3... a6 {[%clk 0:02:58.4]}
4. Ba4 {[%clk 0:02:45.3]} 4... Nf6 {[%clk 0:02:58.6]} 5. d4 {[%clk 0:02:45.9]}
5... exd4 {[%clk 0:02:57.9]} 6. O-O {[%clk 0:02:46.3]} 6... Be7 {[%clk
0:02:57.9]} 7. e5 {[%clk 0:02:46.3]} 7... Ne4 {[%clk 0:02:55.3]} 8. Nxd4 {[%clk
0:02:45.8]} 8... Nxd4 {[%clk 0:02:54.4]} 9. Qxd4 {[%clk 0:02:46.7]} 9... Nc5
{[%clk 0:02:54.4]} 10. Nc3 {[%clk 0:02:47]} 10... O-O {[%clk 0:02:49.3]} 11. Bg5
{[%clk 0:02:41.3]} 11... Nxa4 {[%clk 0:02:43.2]} 12. Bxe7 {[%clk 0:02:39.2]}
12... Nxc3 {[%clk 0:02:22.1]} 13. Qh4 {[%clk 0:01:57.9]} 13... Ne2+ {[%clk
0:02:20.2]} 14. Kh1 {[%clk 0:01:58]} 14... Qe8 {[%clk 0:02:17]} 15. Rae1 {[%clk
0:01:51.1]} 15... Nc3 {[%clk 0:02:08.9]} 16. bxc3 {[%clk 0:01:43.9]} 16... b5
{[%clk 0:02:07]} 17. Re3 {[%clk 0:01:39]} 17... Bb7 {[%clk 0:02:05.4]} 18. Rh3
{[%clk 0:01:36.8]} 18... h6 {[%clk 0:02:03.7]} 19. Rg3 {[%clk 0:01:35.1]} 19...
f5 {[%clk 0:01:58.3]} 20. exf6 {[%clk 0:01:23.4]} 20... Rf7 {[%clk 0:01:46.7]}
21. Qxh6 {[%clk 0:01:22.9]} 1-0

[Event "*** Titled Tuesday Blitz"]
[Site "Chess.com"]
[Date "2020.05.05"]
[Round "5"]
[White "mamey78"]
[Black "Colombiano07"]
[Result "1-0"]
[WhiteElo "2334"]
[BlackElo "2159"]
[TimeControl "180+1"]
[EndTime "10:53:48 PDT"]
[Termination "mamey78 won by resignation"]

1. e4 {[%clk 0:03:00.9]} 1... e6 {[%clk 0:02:59.7]} 2. d4 {[%clk 0:03:00.1]}
2... d5 {[%clk 0:02:58.9]} 3. Nd2 {[%clk 0:02:59.8]} 3... c5 {[%clk 0:02:51.5]}
4. exd5 {[%clk 0:02:57.8]} 4... Qxd5 {[%clk 0:02:52.4]} 5. dxc5 {[%clk
0:02:57.1]} 5... Nc6 {[%clk 0:02:44]} 6. Ngf3 {[%clk 0:02:55.8]} 6... Bxc5
{[%clk 0:02:41.4]} 7. Bc4 {[%clk 0:02:54.7]} 7... Qd7 {[%clk 0:02:27.2]} 8. O-O
{[%clk 0:02:52]} 8... Nf6 {[%clk 0:02:24.9]} 9. c3 {[%clk 0:02:48.2]} 9... O-O
{[%clk 0:02:24.4]} 10. Qe2 {[%clk 0:02:48.3]} 10... a6 {[%clk 0:02:24]} 11. Ne4
{[%clk 0:02:34.4]} 11... Nxe4 {[%clk 0:02:14.7]} 12. Qxe4 {[%clk 0:02:35.3]}
12... b5 {[%clk 0:01:14.2]} 13. Bb3 {[%clk 0:02:20.1]} 13... Bb7 {[%clk
0:01:11.3]} 14. Ng5 {[%clk 0:02:18.4]} 14... g6 {[%clk 0:01:00.3]} 15. Nxe6
{[%clk 0:02:00.6]} 1-0